[Event "3rd President Cup-A 2024"]
[Site "Tashkent"]
[Date "2024.11.28"]
[Round "8.15"]
[White "Audi Ameya"]
[Black "Ayush Sharma"]
[Result "0-1"]
[ECO "C18"]
[WhiteElo "2412"]
[BlackElo "2464"]
[Annotator "TA"]
[PlyCount "130"]
[EventDate "2024.11.22"]
[EventType "swiss"]
[EventCountry "UZB"]
[SourceTitle "playchess.com"]
[Source "ChessBase"]
[SourceQuality "1"]
[TimeControl "5400+30"]

{[%evp 30,130,6,6,43,41,37,41,39,47,38,45,40,32,177,48,54,0,0,0,0,0,0,0,0,-9,-14,-9,0,-54,-49,-185,-170,-187,-204,-198,-168,-175,-131,-147,-112,-112,-55,-58,-38,-65,-65,-115,-116,-127,-124,-207,-196,-210,-211,-210,-202,-362,-374,-321,-198,-500,-462,-1144,-785,-1288,-1141,-1143,-979,-1377,-1256,-1772,-1393,-29958,-29959,-29966,-29966,-29966,-29966,-29969,-29971,-29971,-29972,-29972,-29972,-29971,-29971,-29973,-29974,-29975,-29976,-29975,-29977,-29978,-29977,-29977,-29978,-29978,-29979,-29981,-29981,-29981,-29981]} 1. e4 {[%emt 0:00:02]} e6 {[%emt 0:00:30]} 2. d4 {[%emt 0:00:05]} d5 {[%emt 0:00:04]} 3. Nc3 {[%emt 0:00:08]} Bb4 {[%emt 0:00:29]} 4. e5 {[%emt 0:00:09]} c5 {[%emt 0:00:21]} 5. a3 {[%emt 0:00:05]} Bxc3+ {[%emt 0:00:04]} 6. bxc3 {[%emt 0:00:03]} Qa5 {[%emt 0:01:28]} 7. Bd2 {[%emt 0:00:18]} Qa4 {[%emt 0:00:37]} 8. h4 {[%emt 0:02:20]} Nc6 {[%emt 0:03:03]} 9. h5 {[%emt 0:15:36]} b6 {[%emt 0:02:15]} 10. Qg4 {[%emt 0:07:03]} Kf8 {[%emt 0:02:28]} 11. Qf4 {[%emt 0:10:50]} Qxc2 {[%emt 0:20:12]} 12. Rh3 {[%emt 0:02:22]} Qe4+ {[%emt 0:05:40]} 13. Qxe4 {[%emt 0:06:36]} dxe4 {[%emt 0:02:21]} 14. Ne2 {[%emt 0:00:05]} Ba6 {[%emt 0:08:27]} 15. Be3 {[%emt 0:09:09]} Nge7 {[%emt 0:05:10]} 16. h6 {[%emt 0:04:04]} Nf5 {[%emt 0:05:20]} (16... Bxe2 17. hxg7+ Kxg7 18. Bxe2 Rhc8) 17. hxg7+ {[%emt 0:04:13]} Kxg7 {[%emt 0:00:16]} 18. Ng3 {[%emt 0:08:58]} Bxf1 {[%emt 0:04:09]} (18... cxd4 $2 19. Nxf5+ exf5 20. Bh6+ (20. Bxd4 Bxf1 21. Kxf1 h6 $15) 20... Kg6 21. Bxa6 Nxe5 22. cxd4 $18) 19. Nxf5+ {[%emt 0:05:35]} exf5 {[%emt 0:00:02]} 20. Bh6+ {[%emt 0:00:11]} Kg6 {[%emt 0:00:13]} 21. Kxf1 {[%emt 0:00:03]} f4 {[%emt 0:10:45] [#]} (21... cxd4 22. Rg3+ Kxh6 23. Ke2 d3+ 24. Kd2 e3+ 25. fxe3 Nxe5 26. Rh1#) (21... Ne7 $14) 22. Bxf4 {[%emt 0:00:07]} (22. Re1 $1 $18 {[%cal Re1e4]}) 22... h5 $1 $14 {[%emt 0:00:47]} 23. Be3 {[%emt 0:02:53]} (23. dxc5 $1 $14 Kf5 24. Be3) 23... cxd4 $11 {[%emt 0:02:34]} 24. cxd4 {[%emt 0:00:04]} Rad8 {[%emt 0:02:52]} 25. Rh4 {[%emt 0:02:04]} Nxd4 {[%emt 0:00:39]} 26. Rxe4 {[%emt 0:00:04]} Nc2 {[%emt 0:01:57]} 27. Rc1 {[%emt 0:00:29]} Rc8 {[%emt 0:02:05]} 28. Rd1 {[%emt 0:05:23]} Kf5 {[%emt 0:03:36]} (28... Rhd8 {simplifies} 29. Rxd8 Rxd8 30. a4 Nxe3+ 31. Rxe3 Rd4) 29. f3 {[%emt 0:05:58]} (29. Rf4+ $11 Kxe5 30. Rd7 (30. Rxf7 Nxe3+ 31. fxe3 Rhf8 $11)) 29... Rc4 $15 {[%emt 0:01:34]} 30. Rd7 {[%emt 0:01:42]} (30. Rxc4 $2 Nxe3+ 31. Ke2 Nxc4 $19) (30. Bxb6 $2 axb6 (30... Rxe4 31. fxe4+ Kxe4 32. Bxa7 $11) 31. Re2 (31. Rxc4 $2 Ne3+ 32. Kf2 Nxc4 $19) 31... Re8 $19 (31... Nxa3 $2 32. Rd6 $19)) (30. Bf2 $15 Rxe4 (30... Nxa3 31. Ra1 $14) 31. fxe4+ Kxe5 (31... Kxe4 32. a4 $11) 32. Rd7) 30... Rxe4 $19 {[%emt 0:00:16]} 31. fxe4+ {[%emt 0:00:03]} Ke6 $1 {[%emt 0:00:30]} (31... Kxe5 32. Bf2 $11) 32. Rd3 {[%emt 0:00:40]} Nxe3+ {[%emt 0:00:18]} (32... Kxe5 33. Bf2 $15) 33. Rxe3 {[%emt 0:00:04]} Rc8 {[%emt 0:01:42]} 34. Rh3 {[%emt 0:01:51]} Rc2 {[%emt 0:05:03]} 35. Rxh5 {[%emt 0:01:46]} Rc3 {[%emt 0:01:05]} (35... Rc4 $17 36. Rh8 Rxe4 37. Re8+ Kd7) 36. a4 $15 {[%emt 0:00:03]} Ra3 {[%emt 0:00:13]} 37. Ke2 {[%emt 0:00:03]} Rxa4 {[%emt 0:00:13]} 38. Kd3 {[%emt 0:00:49]} (38. Ke3 $1 $15) 38... Ra5 $17 {[%emt 0:02:18]} 39. Kd4 {[%emt 0:03:21]} f6 {[%emt 0:00:14]} 40. Rh6 {[%emt 0:00:05]} (40. Rh7 $17) 40... Ra4+ $19 {[%emt 0:00:21]} ({Much less strong is} 40... Rxe5 41. Rh8) 41. Ke3 {[%emt 0:01:28]} Kxe5 {[%emt 0:00:07]} 42. Rh5+ {[%emt 0:00:03]} Ke6 {[%emt 0:00:06]} 43. Rh7 $2 {[%emt 0:00:02]} (43. g4) 43... a5 $19 {[%emt 0:01:40]} 44. g4 {[%emt 0:01:37]} Rb4 {[%emt 0:00:53]} 45. Rh6 $2 {[%emt 0:02:18]} (45. Ra7 {was the crucial defense.}) 45... Rb5 $19 {[%emt 0:00:20]} 46. Kd4 {[%emt 0:00:55]} (46. Kd2 $142) 46... a4 $19 {[%emt 0:02:13]} 47. Kc4 {[%emt 0:00:03]} Ra5 {[%emt 0:00:09]} 48. g5 {[%emt 0:00:03]} Rxg5 {[%emt 0:00:19]} 49. Kb4 {[%emt 0:00:03]} Rg4 {[%emt 0:00:50]} 50. Kxa4 {[%emt 0:00:16]} Rxe4+ {[%emt 0:00:04]} 51. Kb5 {[%emt 0:00:04]} Ke5 {[%emt 0:00:13]} 52. Kxb6 {[%emt 0:00:32]} Rc4 {[%emt 0:00:13]} 53. Rh1 {[%emt 0:00:33]} f5 {[%emt 0:00:14]} 54. Kb5 {[%emt 0:00:05]} Rc8 {[%emt 0:00:20]} 55. Re1+ {[%emt 0:00:05]} Kd4 {[%emt 0:00:11]} 56. Rf1 {[%emt 0:00:05]} Ke4 {[%emt 0:00:11]} 57. Re1+ {[%emt 0:00:03]} Kd3 {[%emt 0:00:06]} 58. Rf1 {[%emt 0:00:13]} Rf8 {[%emt 0:00:09]} 59. Rf3+ {[%emt 0:00:44]} Ke4 {[%emt 0:00:07]} 60. Rf1 {[%emt 0:00:03]} f4 {[%emt 0:00:05]} 61. Kc4 {[%emt 0:00:05]} Rc8+ {[%emt 0:00:04]} 62. Kb3 {[%emt 0:00:11]} f3 {[%emt 0:00:08]} 63. Re1+ {[%emt 0:00:14]} Kd3 {[%emt 0:00:06]} 64. Rd1+ {[%emt 0:00:03]} Ke2 {[%emt 0:00:06]} 65. Rd7 {[%emt 0:00:03]} Re8 {[%emt 0:00:09]} 0-1

[Event "3rd President Cup-A 2024"]
[Site "Tashkent"]
[Date "2024.11.28"]
[Round "8.18"]
[White "Usov, Aleksandr E."]
[Black "Goganov, Aleksey"]
[Result "0-1"]
[ECO "E48"]
[WhiteElo "2314"]
[BlackElo "2465"]
[Annotator "TA"]
[PlyCount "64"]
[EventDate "2024.11.22"]
[EventType "swiss"]
[EventCountry "UZB"]
[SourceTitle "playchess.com"]
[Source "ChessBase"]
[SourceQuality "1"]
[TimeControl "5400+30"]

{[%evp 11,64,0,-2,-8,-3,-6,0,-2,0,-8,33,0,6,0,0,-262,5,0,22,0,26,15,24,4,18,20,35,34,32,-44,-43,-55,-55,-49,-72,-127,-131,-128,-117,-122,-142,-127,-132,-80,-77,-150,-145,-317,-314,-312,-313,-313,-313,-306,-300]} 1. d4 {[%emt 0:00:06]} Nf6 {[%emt 0:00:04]} 2. c4 {[%emt 0:00:03]} e6 {[%emt 0:00:05]} 3. Nc3 {[%emt 0:00:10]} Bb4 {[%emt 0:00:08]} 4. e3 {[%emt 0:00:03]} O-O {[%emt 0:00:08]} 5. Bd3 {[%emt 0:00:03]} d5 {[%emt 0:00:06]} 6. cxd5 {[%emt 0:00:27]} exd5 {[%emt 0:00:04]} 7. a3 {[%emt 0:00:04]} Bd6 {[%emt 0:00:09]} 8. Qc2 {[%emt 0:00:13]} Na6 {[%emt 0:01:46]} 9. Nge2 {[%emt 0:01:12]} c5 {[%emt 0:01:05]} 10. b3 {[%emt 0:05:28]} b6 {[%emt 0:03:23]} 11. O-O {[%emt 0:01:58]} Nc7 {[%emt 0:02:07]} 12. Bb2 {[%emt 0:08:35]} Re8 {[%emt 0:04:52][%cal Od6h2]} 13. Rfd1 $2 {[%emt 0:04:32][%mdl 8192]} (13. Rfe1 $11) 13... Bb7 $2 {[%emt 0:08:14]} ({Black should try} 13... Bxh2+ $1 $19 14. Kxh2 Ng4+ 15. Kg1 Qh4) 14. Ng3 {[%emt 0:21:49]} g6 {[%emt 0:04:27]} 15. Nb5 {[%emt 0:04:39]} Nxb5 {[%emt 0:00:34]} 16. Bxb5 {[%emt 0:00:04]} Re6 {[%emt 0:00:10]} 17. Be2 {[%emt 0:01:13]} h5 {[%emt 0:06:44]} 18. Bf3 {[%emt 0:03:37]} Rc8 {[%emt 0:01:48]} 19. dxc5 {[%emt 0:04:21]} bxc5 {[%emt 0:00:11]} 20. Ne2 {[%emt 0:01:52]} (20. Rac1 $14) 20... Qc7 $15 {[%emt 0:06:09]} 21. h3 {[%emt 0:06:35] [#]} d4 $1 {[%emt 0:02:01]} 22. Bxb7 {[%emt 0:05:08]} Qxb7 {[%emt 0:00:09]} 23. exd4 {[%emt 0:09:32]} (23. Rd3 $142) 23... Rce8 $1 $17 {[%emt 0:00:32][%cal Bc8e8,Be8e3,Be3b3,Bb3b2][%mdl 32]} (23... cxd4 24. Qd3 $14) 24. Re1 {[%emt 0:00:04] [#]} Nd5 $1 $36 {[%emt 0:12:24][%mdl 2048] Black is really pushing.} 25. Kf1 {[%emt 0:13:30] [#]} (25. dxc5 Nf4 26. c6 Qb8 $19 (26... Nxe2+ 27. Rxe2 Rxe2 28. Qxe2 $11)) 25... Rf6 $1 {[%emt 0:02:41] ( -> ...Ne3+) Black is much more active.} 26. Nc3 {[%emt 0:01:58]} (26. dxc5 $2 Ne3+ 27. Kg1 Qxg2#) (26. Kg1 $2 Bh2+ 27. Kxh2 Rxf2 $19) 26... Ne3+ {[%emt 0:01:31]} 27. Rxe3 {[%emt 0:00:05]} Rxe3 {[%emt 0:00:02]} 28. dxc5 {[%emt 0:01:06]} ({Better is} 28. Kg1 Bb8 29. Qd2 (29. fxe3 $2 Qc7 $19)) 28... Bxc5 {[%emt 0:11:10][%cal Oe3h3] White must now prevent ...Rxh3!.} 29. Nd1 $2 {[%emt 0:04:16]} (29. Ne4 $17 {only move.} Qxe4 (29... Rxe4 30. Qxc5 Rfe6 31. Qc3 $17) 30. Qxe4 Rxf2+ 31. Kxf2 Rxe4+ 32. Kg3) 29... Qa6+ $19 {[%emt 0:01:25]} (29... Qxb3 $2 30. Qxb3 $18 (30. Qxc5 Rd3 $11)) 30. Qc4 {[%emt 0:00:43]} Rxb3 {[%emt 0:00:08]} 31. Rc1 {[%emt 0:01:26]} Qxc4+ {[%emt 0:01:09]} ({Inferior is} 31... Bxa3 32. Bxf6 Qxf6 33. Qxb3 $11) 32. Rxc4 {[%emt 0:00:09] [#]} Rxb2 $1 {[%emt 0:02:31][%mdl 512]} 0-1

[Event "3rd President Cup-A 2024"]
[Site "Tashkent"]
[Date "2024.11.28"]
[Round "8.19"]
[White "Suyarov, Mukhammadzokhid"]
[Black "Bakhrillaev, Bakhrom"]
[Result "1-0"]
[ECO "A01"]
[WhiteElo "2464"]
[BlackElo "2369"]
[Annotator "TA"]
[PlyCount "81"]
[EventDate "2024.11.22"]
[EventType "swiss"]
[EventCountry "UZB"]
[SourceTitle "playchess.com"]
[Source "ChessBase"]
[SourceQuality "1"]
[TimeControl "5400+30"]

{[%evp 9,81,-13,0,-5,26,0,7,23,26,18,68,70,53,63,53,52,68,33,25,0,6,0,0,-27,-27,-36,0,-7,11,0,6,0,0,0,0,0,0,0,0,0,1,0,0,0,0,0,0,0,49,46,104,46,93,87,87,84,110,105,130,138,135,99,160,165,158,159,232,144,260,253,272,266,766,762]} 1. b3 {[%emt 0:00:02]} e5 {[%emt 0:01:55]} 2. Bb2 {[%emt 0:00:15]} Nc6 {[%emt 0:00:04]} 3. e3 {[%emt 0:00:07]} d5 {[%emt 0:00:03]} 4. Bb5 {[%emt 0:00:07]} Bd6 {[%emt 0:00:03]} 5. f4 {[%emt 0:00:06]} f6 {[%emt 0:00:19][%cal Bf7f6,Bf6e5,Be5e4][%mdl 32]} (5... exf4 $2 6. Bxg7 (6. Bxc6+ bxc6 7. Bxg7 Qh4+ 8. Kf1 Ba6+ 9. c4 O-O-O $16) 6... Qh4+ 7. Kf1 $18) 6. Nc3 {[%emt 0:00:06]} a6 {[%emt 0:02:05]} 7. Bxc6+ {[%emt 0:01:55]} bxc6 {[%emt 0:00:08]} 8. Qh5+ {[%emt 0:02:06]} g6 {[%emt 0:02:30]} 9. Qh4 {[%emt 0:02:32]} h5 {[%emt 0:23:13]} (9... Bd7 $11) 10. fxe5 $14 {[%emt 0:06:51]} fxe5 {[%emt 0:03:56]} 11. Qxd8+ {[%emt 0:00:31]} Kxd8 {[%emt 0:00:04]} 12. Nf3 {[%emt 0:00:18]} Nh6 {[%emt 0:00:48]} 13. Na4 {[%emt 0:03:14]} Re8 {[%emt 0:04:25]} 14. c4 {[%emt 0:07:16] aiming for c5.} e4 {[%emt 0:02:06]} 15. Nd4 {[%emt 0:10:06]} Bd7 $1 {[%emt 0:01:02]} 16. c5 {[%emt 0:00:22]} Be7 {[%emt 0:01:50]} 17. O-O {[%emt 0:05:47]} Kc8 {[%emt 0:06:11]} 18. b4 {[%emt 0:01:59]} Nf5 {[%emt 0:00:51]} 19. Nxf5 {[%emt 0:07:05]} Bxf5 {[%emt 0:00:10]} 20. Bd4 {[%emt 0:00:32]} a5 {[%emt 0:13:04]} 21. a3 {[%emt 0:01:05]} Kd7 {[%emt 0:00:02]} 22. Nc3 {[%emt 0:03:16]} Reb8 {[%emt 0:00:46]} 23. Rab1 {[%emt 0:04:45]} axb4 {[%emt 0:03:10]} 24. axb4 {[%emt 0:00:49]} Rb7 {[%emt 0:00:01]} 25. Rb2 {[%emt 0:01:46]} Rab8 {[%emt 0:00:44]} 26. Rfb1 {[%emt 0:00:16]} g5 {[%emt 0:00:41][%cal Bg6g5,Bg5g4][%mdl 32]} 27. h3 {[%emt 0:10:57]} g4 {[%emt 0:00:53]} 28. Kh2 {[%emt 0:00:53]} Bg5 {[%emt 0:17:01]} (28... h4 $11 {is more appropriate.}) 29. Ne2 {[%emt 0:01:59]} Ke7 {[%emt 0:01:32]} (29... gxh3 $14 30. gxh3 Rg8) 30. Ng3 {[%emt 0:04:29]} (30. Be5 $16) 30... Bg6 {[%emt 0:02:22]} (30... Be6 $14) 31. hxg4 $16 {[%emt 0:00:37]} hxg4 {[%emt 0:00:04]} 32. Ne2 {[%emt 0:00:21]} Bh4 {[%emt 0:00:34]} 33. Be5 {[%emt 0:02:05]} Rf8 {[%emt 0:00:41]} 34. Nd4 {[%emt 0:01:29]} Be8 {[%emt 0:00:21]} 35. b5 {[%emt 0:01:00] White has more active pieces.} Bf6 {[%emt 0:05:29]} (35... cxb5 $2 36. c6 (36. Nxb5 Rxb5 37. Rxb5 Bxb5 $11) 36... Rb6 37. Rxb5 Rxc6 38. Nxc6+ Bxc6 39. Rc5 $18) (35... g3+ $142 36. Kh3 (36. Bxg3 Bxg3+ 37. Kxg3 Rg8+ 38. Kf2 cxb5 $11) 36... Bf6 37. Bxf6+ (37. Nxc6+ Bxc6 38. Bxf6+ Rxf6 $11) (37. bxc6 Rh8+ 38. Kg4 Rg8+ 39. Kf4 Rxb2 $11) 37... Rxf6) 36. Bxf6+ {[%emt 0:01:37]} ({Stronger than} 36. Nxc6+ Bxc6 37. Bxf6+ Rxf6 $11 (37... Kxf6 38. bxc6 Rxb2 39. Rxb2 $14)) 36... Rxf6 {[%emt 0:00:00]} 37. b6 {[%emt 0:00:18]} Bd7 {[%emt 0:01:55]} (37... g3+ $16 38. Kxg3 Rg6+ 39. Kf2 Rf6+ 40. Ke2 Bd7 41. bxc7 Bg4+ 42. Ke1 Rxc7) 38. bxc7 {[%emt 0:01:19]} Rxc7 {[%emt 0:00:07]} (38... g3+ $16 {was necessary.} 39. Kxg3 Rxc7) 39. Kg3 $18 {[%emt 0:00:09]} Ra7 {[%emt 0:00:53]} 40. Rh1 {[%emt 0:00:44]} Ra5 $2 {[%emt 0:00:24]} (40... Rf8 41. Rb6 Rc7) 41. Rb7 {[%emt 0:00:19]} 1-0

[Event "3rd President Cup-A 2024"]
[Site "Tashkent"]
[Date "2024.11.28"]
[Round "8.22"]
[White "Nazari, Arad"]
[Black "Tillyaev, Ulugbek"]
[Result "1/2-1/2"]
[ECO "B03"]
[WhiteElo "2401"]
[BlackElo "2303"]
[Annotator "TA"]
[PlyCount "50"]
[EventDate "2024.11.22"]
[EventType "swiss"]
[EventCountry "UZB"]
[SourceTitle "playchess.com"]
[Source "ChessBase"]
[SourceQuality "1"]
[TimeControl "5400+30"]

{[%evp 23,50,12,30,0,37,24,33,16,26,0,-3,0,0,-56,0,0,0,0,0,0,91,-47,-15,-27,0,0,120,-49,0]} 1. e4 {[%emt 0:00:04][%cal Be2e4,Be4e5][%mdl 32]} Nf6 {[%emt 0:08:08][%cal Bg8f6,Bf6d5,Bd5b6][%mdl 32]} 2. e5 {[%emt 0:00:10]} Nd5 {[%emt 0:00:05]} 3. d4 {[%emt 0:00:04]} d6 {[%emt 0:00:03]} 4. c4 {[%emt 0:00:11]} Nb6 {[%emt 0:02:12]} 5. f4 {[%emt 0:00:06]} dxe5 {[%emt 0:00:08]} 6. fxe5 {[%emt 0:00:06]} Nc6 {[%emt 0:00:02]} 7. Be3 {[%emt 0:00:08]} Bf5 {[%emt 0:00:01]} 8. Nc3 {[%emt 0:00:18]} e6 {[%emt 0:00:02]} 9. Nf3 {[%emt 0:00:39]} Be7 {[%emt 0:00:06]} 10. Be2 {[%emt 0:00:19]} O-O {[%emt 0:00:03]} 11. O-O {[%emt 0:00:40]} f6 {[%emt 0:00:01]} 12. exf6 {[%emt 0:02:10]} Bxf6 {[%emt 0:00:02]} 13. h3 {[%emt 0:00:21]} Bg6 {[%emt 0:02:56]} 14. Qd2 {[%emt 0:04:16]} Qe7 {[%emt 0:00:48]} 15. Rad1 {[%emt 0:10:38]} Rad8 {[%emt 0:00:08][%cal Oc6d4]} 16. Qe1 {[%emt 0:11:49]} e5 {[%emt 0:05:24][%cal Be6e5,Be5e4][%mdl 32]} 17. d5 {[%emt 0:00:20]} Nd4 {[%emt 0:01:10]} 18. Qf2 {[%emt 0:14:19] [#]} (18. Nxd4 $2 exd4 19. Bxd4 Bxd4+ 20. Kh1 Rxf1+ 21. Qxf1 Rf8 $19) (18. Qd2 $11) 18... Bh4 {[%emt 0:36:55]} 19. g3 $11 {[%emt 0:00:01]} Nxf3+ {[%emt 0:02:00]} 20. Bxf3 {[%emt 0:00:10]} e4 $1 {[%emt 0:00:03]} 21. Bc5 {[%emt 0:01:48]} Qg5 {[%emt 0:02:45]} 22. Be3 {[%emt 0:52:53] Chess con chili.} (22. Bxf8 Bxg3 (22... Rxf8 23. Nxe4 Bxe4 24. Qe1 $14) 23. Qg2 (23. Nxe4 $2 Bxf2+ 24. Kxf2 Bxe4 $19) 23... exf3 24. Rxf3 Bh4 $14) (22. Nxe4 $16 Bxe4 23. Bxf8 Rxf8 24. Qe1) 22... Qe5 {[%emt 0:16:28]} 23. Bd4 {[%emt 0:00:30]} Qe7 {[%emt 0:00:15]} (23... Qxg3+ 24. Qxg3 Bxg3 25. Nxe4 Bxe4 26. Bxe4 Nxc4 27. Bf5 $17) (23... Qe8 $11 24. Rde1 (24. gxh4 Rxf3 25. Qg2 c5 $15) 24... Rxf3 25. Qxf3 exf3 26. Rxe8+ Rxe8 27. Bxb6 Bf6 (27... Bxg3 28. Rxf3 Re1+ 29. Kg2 $15) 28. Bxc7 Bd4+ 29. Kh2 Rf8) 24. Bc5 $16 {[%emt 0:00:00]} Qg5 {[%emt 0:02:12]} 25. Be3 $2 {[%emt 0:01:00]} ({Resist} 25. Bxf8 Rxf8 26. Nxe4 Bxe4) (25. Nxe4 $16 Bxe4 26. Bxf8 Rxf8 27. Qe1) 25... Qe7 {[%emt 0:09:24]} (25... Qxg3+ $15 26. Qxg3 Bxg3 27. Nxe4 (27. Bxe4 Nxc4 28. Rxf8+ Rxf8 $17) 27... Nxc4) 1/2-1/2

[Event "3rd President Cup-A 2024"]
[Site "Tashkent"]
[Date "2024.11.28"]
[Round "8.23"]
[White "Zarubitski, Viachaslau"]
[Black "Degenbaev, Aziz"]
[Result "1-0"]
[ECO "A25"]
[WhiteElo "2389"]
[BlackElo "2260"]
[Annotator "TA"]
[PlyCount "93"]
[EventDate "2024.11.22"]
[EventType "swiss"]
[EventCountry "UZB"]
[SourceTitle "playchess.com"]
[Source "ChessBase"]
[SourceQuality "1"]
[TimeControl "5400+30"]

{[%evp 9,93,8,30,23,22,8,25,-10,0,-12,-12,-18,-17,-18,0,-35,0,-121,-115,-120,-138,-135,-125,-163,-146,-197,-182,-222,-184,-341,-184,-179,-209,-194,-188,-210,0,0,0,-121,-114,-348,-290,-298,0,0,119,120,118,117,112,124,180,170,234,237,228,214,446,440,451,476,442,209,465,493,507,505,489,519,506,523,523,517,502,464,605,564,1321,1232,1109,868,809,760,1110,918]} 1. c4 {[%emt 0:10:29]} e5 {[%emt 0:01:13]} 2. Nc3 {[%emt 0:00:13]} Nc6 {[%emt 0:00:14]} 3. g3 {[%emt 0:00:06]} Bc5 {[%emt 0:00:42]} 4. Bg2 {[%emt 0:01:18]} d6 {[%emt 0:00:42]} 5. a3 {[%emt 0:03:53]} a6 {[%emt 0:09:15]} 6. e3 {[%emt 0:01:20]} Ba7 {[%emt 0:00:34]} 7. Nge2 {[%emt 0:00:25]} h5 {[%emt 0:00:51]} 8. h3 {[%emt 0:03:59]} h4 {[%emt 0:02:04]} 9. g4 {[%emt 0:00:09]} f5 {[%emt 0:00:21]} 10. gxf5 {[%emt 0:00:29]} Bxf5 {[%emt 0:00:18]} 11. d4 {[%emt 0:00:56]} Qd7 {[%emt 0:07:02]} 12. b4 {[%emt 0:01:31]} Nf6 {[%emt 0:05:03]} 13. Bb2 {[%emt 0:05:09]} (13. d5 $11 Nd8 14. e4) 13... exd4 $17 {[%emt 0:07:53]} 14. exd4 {[%emt 0:01:15]} O-O-O {[%emt 0:00:35]} 15. Bc1 {[%emt 0:14:09]} Qf7 {[%emt 0:20:45]} 16. b5 {[%emt 0:12:18]} axb5 $1 {[%emt 0:07:07]} 17. Nxb5 {[%emt 0:00:32]} (17. cxb5 $17 Na5 18. Bg5) 17... Bb6 $19 {[%emt 0:01:03]} (17... Qxc4 18. Nxa7+ Nxa7 19. Be3 $17 (19. O-O Bc2 $17)) 18. Qa4 {[%emt 0:07:25]} Be4 {[%emt 0:01:26]} 19. Rg1 $2 {[%emt 0:06:44]} (19. O-O) 19... Na5 {[%emt 0:11:56]} (19... Bxg2 $142 20. Rxg2 Nh5) 20. c5 {[%emt 0:12:15]} dxc5 {[%emt 0:00:13]} 21. dxc5 {[%emt 0:00:08]} Bxc5 {[%emt 0:07:44]} 22. Be3 {[%emt 0:01:48]} (22. Qxa5 $2 Bxf2+ 23. Kf1 Rd1+ $19 (23... Bxg1 $2 24. Bf4 $19)) 22... Bxe3 $2 {[%emt 0:00:24]} (22... Nb3 $1 $19 {[%cal Rb3a1]} 23. Qa8+ Kd7) 23. fxe3 $11 {[%emt 0:00:13]} Bxg2 {[%emt 0:03:19]} 24. Rxg2 {[%emt 0:00:07]} (24. Rc1 $1 $11 Bc6 (24... Bxh3 $2 25. Qxa5 Ne8 26. Nf4 $18) 25. Qxa5 Bxb5 26. Qa8+ Kd7 27. Qxb7) 24... b6 $17 {[%emt 0:01:01]} 25. Ned4 $2 {[%emt 0:02:23]} (25. Rc1 $17 {is the only way for White.} c5 26. Qf4) 25... Rhe8 {[%emt 0:01:41][%cal Of6d5]} 26. O-O-O {[%emt 0:00:28]} c5 $2 {[%emt 0:02:46]} (26... Rxe3 27. Rc2 Rd7 (27... Rxh3 28. Nxc7 Rxd4 29. Nb5+ Kb8 30. Nxd4 $16) 28. Na7+ Kb7 29. Nac6 $19) (26... Kb7 $19 {[%cal Of6e4] ...Ne4! is the strong threat.} 27. Rdg1 Nh5 (27... Rxe3 28. Rxg7 Rxd4 29. Qxd4 $17)) 27. Nf5 $11 {[%emt 0:02:22][%csl LRg7,LRh4] Chess con chili.} Qb3 {[%emt 0:04:35]} (27... Rxd1+ $11 28. Qxd1 Qc4+ 29. Rc2 Qb3 (29... Qxb5 $2 30. Nd6+ Kb8 31. Nxb5 $18) (29... Nb3+ $2 30. Kb2 $18)) 28. Nbd6+ $1 $16 {[%emt 0:05:44]} Kb8 {[%emt 0:00:23]} 29. Qxb3 {[%emt 0:00:14]} Nxb3+ {[%emt 0:00:01]} 30. Kc2 {[%emt 0:00:03][%cal Og2g7] White is more active.} Re5 {[%emt 0:00:40]} (30... Re6 $16) 31. Rxg7 $1 $40 {[%emt 0:04:53][%cal Od6f7][%mdl 128] White has strong attack.} (31. Kxb3 Rxf5 32. Nxf5 (32. Rxg7 Rd5 $11) 32... Rxd1 $11) 31... Na5 {[%emt 0:00:47] [#]} (31... c4 $142 32. Rb7+ (32. Nxh4 Rxe3 33. Rb7+ Ka8 $19) (32. Nxc4 Na1+ 33. Kc3 Ne4+ 34. Kb4 Nc2+ 35. Kb3 Na1+ 36. Rxa1 Rb5+ 37. Kc2 Rxf5 $14) 32... Ka8) 32. Rb1 $1 {[%emt 0:00:24]} (32. Nxh4 Rxe3 $17) 32... Rd7 {[%emt 0:00:32] [#]} 33. Rg6 $1 {[%emt 0:02:08]} (33. Rxb6+ Kc7 34. Ra6 (34. Rxd7+ Kxd7 35. Rb5 Nc6 $16) 34... Rxg7 35. Ra7+ (35. Nxg7 Rxe3 36. Nb5+ Kb8 $18) 35... Kc6 36. Rxg7 Nd5 $16) 33... Re6 $2 {[%emt 0:01:55]} (33... Ne4 {is a better defense.} 34. Rxb6+ Kc7) 34. Rxb6+ {[%emt 0:00:10]} Kc7 {[%emt 0:00:27]} 35. Rb5 {[%emt 0:00:12]} Nc6 {[%emt 0:00:35]} 36. Rb7+ {[%emt 0:02:02]} (36. Rxc5 Rdxd6 37. Nxd6 Kxd6 $18) 36... Kd8 {[%emt 0:00:01]} 37. Nf7+ {[%emt 0:00:17]} Ke8 {[%emt 0:00:25]} 38. Rxd7 {[%emt 0:00:04]} Kxd7 {[%emt 0:00:10]} 39. Ng5 $1 {[%emt 0:00:02]} ({Less strong is} 39. Nxh4 Rxe3 40. Rxf6 Rxh3 $16) 39... Ne7 {[%emt 0:00:52]} 40. Nxe7 {[%emt 0:00:53]} (40. Nxh4 Nxg6 41. Nxe6 Nxh4 42. Nxc5+ Kc6 $17) 40... Rxe7 {[%emt 0:00:01]} 41. Rxf6 {[%emt 0:00:05]} Rxe3 {[%emt 0:00:04][%mdl 4096] Endgame KRN-KR} 42. Rf3 {[%emt 0:00:38]} Re2+ {[%emt 0:00:15]} 43. Kd3 {[%emt 0:00:45]} Ra2 {[%emt 0:01:57]} 44. Kc4 {[%emt 0:00:10]} Rc2+ {[%emt 0:00:48]} 45. Kd5 {[%emt 0:00:20] Hoping for Ne4.} c4 {[%emt 0:00:06]} 46. Ne4 {[%emt 0:00:10]} Ke7 {[%emt 0:00:34] Inhibits Rf7+.} 47. Rc3 {[%emt 0:00:05]} 1-0